fUSD/lending_fUSD_20240513
["ID","MTS","AMOUNT","RATE_DAILY","PERIOD"]
[326947797,1715638264034,-500.0,0.00012876,2]
[326947798,1715638264043,-500.0,0.00012876,2]
[326947799,1715638264053,-500.0,0.00012876,2]
[326947800,1715638264063,-500.0,0.00012876,2]
[326947801,1715638264072,-500.0,0.00012876,2]
[326947802,1715638264082,-500.0,0.00012876,2]
[326947803,1715638264091,-500.0,0.00012876,2]
[326947804,1715638264101,-500.0,0.00012876,2]
[326947805,1715638264112,-500.0,0.00012876,2]
[326947806,1715638264122,-500.0,0.00012876,2]
[326947807,1715638264132,-500.0,0.00012876,2]
[326947808,1715638264141,-500.0,0.00012876,2]
[326947809,1715638264153,-500.0,0.00012876,2]
[326947810,1715638264163,-500.0,0.00012876,2]
[326947811,1715638264173,-500.0,0.00012876,2]
[326947812,1715638264183,-500.0,0.00012876,2]
[326947813,1715638264192,-503.2540181,0.00012876,2]
[326947814,1715638264201,-550.0,0.00012876,2]
[326947815,1715638264211,-500.0,0.00012876,2]
[326947816,1715638264220,-500.0,0.00012876,2]
[326947817,1715638264230,-500.0,0.00012876,2]
[326947818,1715638264239,-500.0,0.00012876,2]
[326947819,1715638264249,-389.19555903,0.00012876,2]
[326947820,1715638264259,-317.86,0.00012876,2]
[326947821,1715638264268,-500.0,0.00012876,2]
[326947822,1715638264278,-500.0,0.00012876,2]
[326947823,1715638264288,-500.0,0.00012876,2]
[326947824,1715638264298,-500.0,0.00012876,2]
[326947825,1715638264308,-500.0,0.00012876,2]
[326947826,1715638264318,-506.82536232,0.00012876,2]
[326947827,1715638264328,-500.0,0.00012876,2]
[326947828,1715638264337,-407.03420993,0.00012893,2]
[326947829,1715638264347,-407.03420988,0.00012894,2]
[326947830,1715638264356,-407.03420988,0.00012894,2]
[326947831,1715638264366,-407.03420988,0.00012895,2]
[326947832,1715638264375,-407.03420988,0.00012896,2]
[326947833,1715638264385,-407.03420988,0.00012896,2]
[326947834,1715638264396,-407.03420988,0.00012897,2]
[326947835,1715638264405,-407.03420988,0.00012897,2]
[326947836,1715638264414,-407.03420988,0.00012898,2]
[326947837,1715638264423,-407.03420988,0.00012899,2]
[326947838,1715638264432,-162.16161132,0.00012899,2]
[326947839,1715638264442,-561.0,0.00012899,2]
[326947840,1715638264453,-407.03420988,0.00012899,2]
[326947841,1715638264463,-407.03420988,0.000129,2]
[326947842,1715638264474,-170.43412484,0.000129,2]
[326947843,1715638264484,-170.43412484,0.000129,2]
[326947844,1715638264494,-170.43412484,0.000129,2]
[326947845,1715638264504,-168.77115794,0.000129,2]
[326947846,1715638264514,-426.36067428,0.000129,2]
[326947847,1715638264523,-1000.0,0.000129,2]
[326947848,1715638264534,-500.0,0.00012927,2]
[326947849,1715638264542,-500.0,0.00012927,2]
[326947850,1715638264552,-500.0,0.00012927,2]
[326947851,1715638264561,-331.06,0.00012927,2]
[326947852,1715638264571,-500.0,0.00012927,2]
[326947853,1715638264581,-500.0,0.00012927,2]
[326947854,1715638264590,-500.0,0.00012927,2]
[326947855,1715638264600,-500.0,0.00012927,2]
[326947856,1715638264610,-576.4057594,0.00012927,2]
[326947857,1715638264620,-540.47572595,0.00012927,2]
[326947858,1715638264630,-596.00541495,0.00012927,2]
[326947859,1715638264639,-506.96739401,0.00012927,2]
[326947860,1715638264650,-500.0,0.00012927,2]
[326947861,1715638264660,-514.5331773,0.00012927,2]
[326947862,1715638264670,-500.0,0.00012927,2]
[326947863,1715638264680,-500.0,0.00012927,2]
[326947864,1715638264690,-500.0,0.00012927,2]
[326947865,1715638264700,-181.83621756,0.00012927,2]
[326947866,1715638264711,-500.0,0.00012927,2]
[326947867,1715638264721,-509.11,0.00012927,2]
[326947868,1715638264731,-500.0,0.00012927,2]
[326947869,1715638264740,-500.0,0.00012927,2]
[326947870,1715638264750,-500.0,0.00012927,2]
[326947871,1715638264759,-517.5488638,0.00012927,2]
[326947872,1715638264770,-516.14000203,0.00012927,2]
[326947873,1715638264780,-277.9,0.00012927,2]
[326947874,1715638264789,-500.0,0.00012927,2]
[326947875,1715638264800,-500.0,0.00012927,2]
[326947876,1715638264810,-500.0,0.00012927,2]
[326947877,1715638264821,-500.0,0.00012927,2]
[326947878,1715638264830,-517.18966297,0.00012927,2]
[326947879,1715638264840,-500.0,0.00012927,2]
[326947880,1715638264850,-500.0,0.00012927,2]
[326947881,1715638264859,-713.45,0.00012927,2]
[326947882,1715638264870,-500.0,0.00012927,2]
[326947883,1715638264879,-240.94,0.00012927,2]
[326947884,1715638264889,-500.0,0.00012927,2]
[326947885,1715638264900,-500.0,0.00012927,2]
[326947886,1715638264909,-400.0,0.0001297,2]
[326947887,1715638264918,-500.0,0.00012983,2]
[326947888,1715638264927,-500.0,0.00012983,2]
[326947889,1715638264936,-629.66,0.00012983,2]
[326947890,1715638264947,-500.0,0.00012983,2]
[326947891,1715638264956,-500.0,0.00012983,2]
[326947892,1715638264969,-548.27,0.00012983,2]
[326947893,1715638264979,-500.0,0.00012983,2]
[326947894,1715638264991,-1000.14,0.00012983,2]
[326947895,1715638265002,-500.0,0.00012983,2]
[326947896,1715638265012,-544.07,0.00012983,2]
[326947897,1715638265022,-355.93,0.00012983,2]
[326947898,1715638265034,-500.0,0.00012984,2]
[326947899,1715638265045,-441.45,0.00012984,2]
[326947900,1715638265056,-500.0,0.00012984,2]
[326947901,1715638265067,-500.0,0.00012984,2]
[326947902,1715638265078,-508.18,0.00012984,2]
[326947903,1715638265089,-500.0,0.00012984,2]
[326947904,1715638265099,-554.47,0.00012984,2]
[326947905,1715638265108,-242.12,0.00012984,2]
[326947906,1715638265120,-500.0,0.00012984,2]
[326947907,1715638265132,-339.20047089,0.00012984,2]
[326947908,1715638265143,-247.69807383,0.00012984,2]
[326947909,1715638265153,-500.0,0.00012984,2]
[326947910,1715638265162,-500.0,0.00012984,2]
[326947911,1715638265171,-500.0,0.00012984,2]
[326947912,1715638265182,-500.0,0.00012984,2]
[326947913,1715638265194,-503.45,0.00012984,2]
[326947914,1715638265205,-500.0,0.00012984,2]
[326947915,1715638265217,-231.05741318,0.00012984,2]
[326947916,1715638265228,-343.84,0.00012984,2]
[326947917,1715638265237,-500.0,0.00012984,2]
[326947918,1715638265247,-426.03,0.00012984,2]
[326947919,1715638265256,-246.17,0.00012984,2]
[326947920,1715638265266,-500.0,0.00012984,2]
[326947921,1715638265275,-470.44,0.00012984,2]
[326947922,1715638265285,-500.0,0.00012984,2]
[326947923,1715638265295,-500.0,0.00012984,2]
[326947924,1715638265304,-500.0,0.00012984,2]
[326947925,1715638265314,-500.0,0.00012984,2]
[326947926,1715638265323,-2395.21,0.00012984,2]
[326947927,1715638265332,-303.79,0.00012984,2]
[326947928,1715638265342,-500.0,0.00012984,2]
[326947929,1715638265351,-636.08,0.00012984,2]
[326947930,1715638265361,-500.0,0.00012984,2]
[326947931,1715638265371,-500.0,0.00012984,2]
[326947932,1715638265381,-500.0,0.00012984,2]
[326947933,1715638265390,-500.0,0.00012984,2]
[326947934,1715638265400,-376.44,0.00012984,2]
[326947935,1715638265409,-500.0,0.00012986,2]
[326947936,1715638265419,-500.0,0.00012986,2]
[326947937,1715638265428,-500.0,0.00012986,2]
[326947938,1715638265437,-8266.0,0.00012986,2]
[326947939,1715638265446,-571.0,0.00012986,2]
[326947940,1715638265456,-4892.0,0.00012986,2]
[326947941,1715638265465,-500.0,0.00012987,2]
[326947942,1715638265474,-500.0,0.00012987,2]
[326947943,1715638265483,-500.0,0.00012987,2]
[326947944,1715638265492,-500.0,0.00012987,2]
[326947945,1715638265502,-560.9012,0.00012987,2]
[326947946,1715638265512,-1000.0,0.00012987,2]
[326947947,1715638265521,-1000.0,0.00012987,2]
[326947948,1715638265531,-1000.0,0.00012987,2]
[326947949,1715638265541,-1000.0,0.00012987,2]
[326947950,1715638265550,-1000.0,0.00012987,2]
[326947951,1715638265560,-1000.0,0.00012987,2]
[326947952,1715638265570,-1000.0,0.00012987,2]
[326947953,1715638265583,-1000.0,0.00012987,2]
[326947954,1715638265593,-1000.0,0.00012987,2]
[326947955,1715638265602,-1000.0,0.00012987,2]
[326947956,1715638265612,-1000.0,0.00012987,2]
[326947957,1715638265622,-1000.0,0.00012987,2]
[326947958,1715638265631,-1000.0,0.00012987,2]
[326947959,1715638265641,-1000.0,0.00012987,2]
[326947960,1715638265652,-1000.0,0.00012987,2]
[326947961,1715638265661,-1000.0,0.00012987,2]
[326947962,1715638265671,-1000.0,0.00012987,2]
[326947963,1715638265680,-1000.0,0.00012987,2]
[326947964,1715638265690,-1000.0,0.00012987,2]
[326947965,1715638265699,-1000.0,0.00012987,2]
[326947966,1715638265708,-1000.0,0.00012987,2]
[326947967,1715638265718,-1000.0,0.00012987,2]
[326947968,1715638265727,-1000.0,0.00012987,2]
[326947969,1715638265736,-1000.0,0.00012987,2]
[326947970,1715638265745,-1000.0,0.00012987,2]
[326947971,1715638265754,-1000.0,0.00012987,2]
[326947972,1715638265764,-1000.0,0.00012987,2]
[326947973,1715638265774,-1000.0,0.00012987,2]
[326947974,1715638265783,-1000.0,0.00012987,2]
[326947975,1715638265792,-1000.0,0.00012987,2]
[326947976,1715638265803,-1000.0,0.00012987,2]
[326947977,1715638265812,-1000.0,0.00012987,2]
[326947978,1715638265822,-1000.0,0.00012987,2]
[326947979,1715638265832,-1000.0,0.00012987,2]
[326947980,1715638265841,-1000.0,0.00012987,2]
[326947981,1715638265851,-1000.0,0.00012987,2]
[326947982,1715638265860,-1000.0,0.00012987,2]
[326947983,1715638265869,-1000.0,0.00012987,2]
[326947984,1715638265878,-290.1983,0.00012987,2]
[326947985,1715638265887,-427.5900503,0.00012991,2]
[326947986,1715638265897,-365.19,0.00012991,2]
[326947987,1715638265907,-512.19,0.00012991,2]
[326947988,1715638265916,-500.0,0.00012991,2]
[326947989,1715638265926,-500.0,0.00012991,2]
[326947990,1715638265935,-581.8796236,0.00012991,2]
[326947991,1715638265949,-500.0,0.00012991,2]
[326947992,1715638265958,-418.28,0.00012991,2]
[326947993,1715638265967,-500.0,0.00012991,2]
[326947994,1715638265977,-252.05,0.00012991,2]
[326947995,1715638265987,-500.0,0.00012991,2]
[326947996,1715638265996,-500.0,0.00012991,2]
[326947997,1715638266006,-500.0,0.00012991,2]
[326947998,1715638266015,-8011.07,0.00012991,2]
[326947999,1715638266024,-500.0,0.00012991,2]
[326948000,1715638266035,-312.65,0.00012991,2]
[326948001,1715638266045,-500.0,0.00012991,2]
[326948002,1715638266054,-552.57,0.00012991,2]
[326948003,1715638266064,-500.0,0.00012991,2]
[326948004,1715638266073,-488.39,0.00012991,2]
[326948005,1715638266083,-500.0,0.00012991,2]
[326948006,1715638266092,-500.0,0.00012992,2]
[326948007,1715638266102,-500.0,0.00012992,2]
[326948008,1715638266111,-500.0,0.00012992,2]
[326948009,1715638266160,-500.0,0.00012992,2]
[326948010,1715638266169,-278.19,0.00012992,2]
[326948011,1715638266180,-500.0,0.00012992,2]
[326948012,1715638266191,-500.0,0.00012992,2]
[326948013,1715638266201,-500.0,0.00012992,2]
[326948014,1715638266211,-542.45332143,0.00012992,2]
[326948015,1715638266221,-528.77888127,0.00012992,2]
[326948016,1715638266232,-546.30481326,0.00012992,2]
[326948017,1715638266242,-165.74386962,0.00012992,2]
[326948018,1715638266251,-234.99908886,0.00012992,2]
[326948019,1715638266485,-306.56000874,0.00012992,2]
[326948020,1715638266495,-319.48,0.00012992,2]
[326948021,1715638266504,-526.7432381,0.00012992,2]
[326948022,1715638266515,-324.3,0.00012992,2]
[326948023,1715638266524,-320.28,0.00012992,2]
[326948024,1715638266535,-500.0,0.00012992,2]
[326948025,1715638266544,-500.0,0.00012992,2]
[326948026,1715638266555,-560.94,0.00012992,2]
[326948027,1715638266566,-500.0,0.00012992,2]
[326948028,1715638266575,-525.04548813,0.00012992,2]
[326948029,1715638266585,-500.0,0.00012992,2]
[326948030,1715638266595,-532.23486107,0.00012992,2]
[326948031,1715638266606,-303.16506749,0.00012992,2]
[326948032,1715638266616,-500.0,0.00012992,2]
[326948033,1715638266626,-500.0,0.00012992,2]
[326948034,1715638266636,-72.03583648,0.00012992,2]
[326948035,1715638266670,-417.95220767,0.00012876,2]
[326948036,1715638266883,-248.20231284,0.00012875,2]
[326948037,1715638266895,-82.04779233,0.00012876,2]
[326948038,1715638266906,-500.0,0.00012876,2]
[326948039,1715638266914,-500.0,0.00012876,2]
[326948040,1715638266924,-502.85693515,0.00012876,2]
[326948041,1715638266935,-500.0,0.00012876,2]
[326948042,1715638266945,-500.0,0.00012876,2]
[326948043,1715638266956,-500.0,0.00012983,2]
[326948044,1715638266970,-427.96416352,0.00012992,2]
[326948045,1715638266982,-500.0,0.00012992,2]
[326948046,1715638266991,-509.46,0.00012992,2]
[326948047,1715638267003,-500.0,0.00012992,2]
[326948048,1715638267013,-500.0,0.00012992,2]
[326948049,1715638267023,-500.0,0.00012992,2]
[326948050,1715638267034,-500.0,0.00012992,2]
[326948051,1715638267045,-500.0,0.00012992,2]
[326948052,1715638267054,-500.0,0.00012992,2]
[326948053,1715638267064,-500.0,0.00012992,2]
[326948054,1715638267076,-500.0,0.00012992,2]
[326948055,1715638267087,-500.0,0.00012992,2]
[326948056,1715638267099,-466.3,0.00012992,2]
[326948057,1715638267108,-500.0,0.00012992,2]
[326948058,1715638267119,-619.14,0.00012992,2]
[326948059,1715638267130,-500.0,0.00012992,2]
[326948060,1715638267139,-304.92435929,0.00012992,2]
[326948061,1715638267149,-500.0,0.00012992,2]
[326948062,1715638267158,-500.0,0.00012992,2]
[326948063,1715638267168,-500.0,0.00012992,2]
[326948064,1715638267177,-500.0,0.00012992,2]
[326948065,1715638267187,-500.0,0.00012992,2]
[326948066,1715638267196,-500.0,0.00012992,2]
[326948067,1715638267205,-500.0,0.00012992,2]
[326948068,1715638267214,-500.0,0.00012992,2]
[326948069,1715638267225,-500.0,0.00012992,2]
[326948070,1715638267236,-500.0,0.00012992,2]
[326948071,1715638267245,-500.0,0.00012992,2]
[326948072,1715638267255,-500.0,0.00012992,2]
[326948073,1715638267264,-500.0,0.00012992,2]
[326948074,1715638267273,-500.0,0.00012992,2]
[326948075,1715638267283,-500.0,0.00012992,2]
[326948076,1715638267292,-500.0,0.00012992,2]
[326948077,1715638267301,-499.13772885,0.00012992,2]
[326948078,1715638267311,-500.0,0.00012992,2]
[326948079,1715638267321,-500.0,0.00012992,2]
[326948080,1715638267330,-500.0,0.00012992,2]
[326948081,1715638267340,-500.0,0.00012992,2]
[326948082,1715638267349,-500.0,0.00012992,2]
[326948083,1715638267359,-500.0,0.00012992,2]
[326948084,1715638267369,-500.0,0.00012992,2]
[326948085,1715638267380,-500.0,0.00012992,2]
[326948086,1715638267390,-198.33,0.00012992,2]
[326948087,1715638267401,-448.38,0.00012992,2]
[326948088,1715638267410,-500.0,0.00012992,2]
[326948089,1715638267419,-500.0,0.00012992,2]
[326948090,1715638267429,-500.0,0.00012992,2]
[326948091,1715638267439,-500.0,0.00012992,2]
[326948092,1715638267449,-500.0,0.00012992,2]
[326948093,1715638267459,-771.63,0.00012992,2]
[326948094,1715638267474,-500.0,0.00012992,2]
[326948095,1715638267485,-500.0,0.00012992,2]
[326948096,1715638267495,-500.0,0.00012992,2]
[326948097,1715638267505,-500.0,0.00012992,2]
[326948098,1715638267515,-500.0,0.00012992,2]
[326948099,1715638267526,-532.95,0.00012992,2]
[326948100,1715638267536,-1758.32,0.00012992,2]
[326948101,1715638267546,-500.0,0.00012992,2]
[326948102,1715638267558,-500.0,0.00012992,2]
[326948103,1715638267568,-500.0,0.00012992,2]
[326948104,1715638267578,-500.0,0.00012992,2]
[326948105,1715638267588,-500.0,0.00012992,2]
[326948106,1715638267598,-500.0,0.00012992,2]
[326948107,1715638267607,-500.0,0.00012992,2]
[326948108,1715638267617,-500.0,0.00012992,2]
[326948109,1715638267627,-500.0,0.00012992,2]
[326948110,1715638267636,-500.0,0.00012992,2]
[326948111,1715638267646,-500.0,0.00012992,2]
[326948112,1715638267656,-456.58,0.00012992,2]
[326948113,1715638267667,-474.45,0.00012992,2]
[326948114,1715638267676,-507.84439773,0.00012992,2]
[326948115,1715638267686,-500.0,0.00012992,2]
[326948116,1715638267696,-163.08631001,0.00012992,2]
[326948117,1715638267705,-500.0,0.00012992,2]
[326948118,1715638267715,-548.44,0.00012992,2]
[326948119,1715638267725,-385.99,0.00012992,2]
[326948120,1715638267735,-525.6,0.00012992,2]
[326948121,1715638267744,-500.0,0.00012992,2]
[326948122,1715638267753,-240.2,0.00012992,2]
[326948123,1715638267763,-500.0,0.00012992,2]
[326948124,1715638267772,-500.0,0.00012992,2]
[326948125,1715638267782,-500.0,0.00012992,2]
[326948126,1715638267792,-500.0,0.00012992,2]
[326948127,1715638267801,-372.88,0.00012992,2]
[326948128,1715638267811,-500.0,0.00012992,2]
[326948129,1715638267820,-500.0,0.00012992,2]
[326948130,1715638267830,-500.0,0.00012992,2]
[326948131,1715638267839,-500.0,0.00012992,2]
[326948132,1715638267849,-500.0,0.00012992,2]
[326948133,1715638267859,-500.0,0.00012992,2]
[326948134,1715638267869,-500.0,0.00012992,2]
[326948135,1715638267878,-500.0,0.00012992,2]
[326948136,1715638267887,-500.0,0.00012992,2]
[326948137,1715638267896,-626.24052102,0.00012993,2]
[326948138,1715638267906,-524.46239386,0.00012993,2]
[326948139,1715638267915,-525.02549785,0.00012993,2]
[326948140,1715638267924,-500.0,0.00012993,2]
[326948141,1715638267934,-500.0,0.00012993,2]
[326948142,1715638267945,-500.0,0.00012993,2]
[326948143,1715638267959,-578.03043904,0.00012993,2]
[326948144,1715638267968,-208.53142253,0.00012993,2]
[326948145,1715638267977,-500.0,0.00012993,2]
[326948146,1715638267988,-500.0,0.00012993,2]
[326948147,1715638267996,-500.0,0.00012993,2]
[326948148,1715638268005,-437.068277,0.00012993,2]
[326948149,1715638268014,-500.0,0.00012993,2]
[326948150,1715638268025,-500.0,0.00012993,2]
[326948151,1715638268034,-500.0,0.00012993,2]
[326948152,1715638268043,-500.0,0.00012993,2]
[326948153,1715638268053,-500.0,0.00012993,2]
[326948154,1715638268062,-500.0,0.00012993,2]
[326948155,1715638268071,-500.0,0.00012993,2]
[326948156,1715638268080,-500.0,0.00012993,2]
[326948157,1715638268089,-500.0,0.00012993,2]
[326948158,1715638268099,-500.0,0.00012993,2]
[326948159,1715638268108,-500.0,0.00012993,2]
[326948160,1715638268119,-500.0,0.00012993,2]
[326948161,1715638268128,-500.0,0.00012993,2]
[326948162,1715638268138,-500.0,0.00012993,2]
[326948163,1715638268149,-500.0,0.00012993,2]
[326948164,1715638268158,-500.0,0.00012993,2]
[326948165,1715638268167,-500.0,0.00012993,2]
[326948166,1715638268176,-500.0,0.00012994,2]
[326948167,1715638268185,-500.0,0.00012994,2]
[326948168,1715638268194,-500.0,0.00012994,2]
[326948169,1715638268204,-500.0,0.00012994,2]
[326948170,1715638268213,-500.0,0.00012994,2]
[326948171,1715638268223,-500.0,0.00012994,2]
[326948172,1715638268232,-500.0,0.00012994,2]
[326948173,1715638268241,-532.08493771,0.00012994,2]
[326948174,1715638268250,-500.0,0.00012994,2]
[326948175,1715638268259,-500.0,0.00012994,2]
[326948176,1715638268268,-415.17,0.00012994,2]
[326948177,1715638268278,-509.11,0.00012994,2]
[326948178,1715638268287,-495.61202471,0.00012994,2]
[326948179,1715638268296,-535.79,0.00012994,2]
[326948180,1715638268305,-629.66,0.00012994,2]
[326948181,1715638268314,-500.0,0.00012994,2]
[326948182,1715638268324,-500.0,0.00012994,2]
[326948183,1715638268333,-548.27,0.00012994,2]
[326948184,1715638268343,-500.0,0.00012994,2]
[326948185,1715638268352,-500.0,0.00012994,2]
[326948186,1715638268361,-500.0,0.00012994,2]
[326948187,1715638268370,-500.0,0.00012994,2]
[326948188,1715638268379,-500.0,0.00012994,2]
[326948189,1715638268389,-500.0,0.00012994,2]
[326948190,1715638268398,-1000.14,0.00012994,2]
[326948191,1715638268408,-713.45,0.00012994,2]
[326948192,1715638268418,-500.0,0.00012994,2]
[326948193,1715638268427,-544.07,0.00012994,2]
[326948194,1715638268437,-500.0,0.00012995,2]
[326948195,1715638268446,-500.0,0.00012995,2]
[326948196,1715638268456,-2395.21,0.00012995,2]
[326948197,1715638268466,-500.0,0.00012995,2]
[326948198,1715638268475,-500.0,0.00012995,2]
[326948199,1715638268485,-500.0,0.00012995,2]
[326948200,1715638268495,-500.0,0.00012995,2]
[326948201,1715638268504,-3649.766,0.00012995,2]
[326948202,1715638268513,-282.84752891,0.00012996,7]
[326948203,1715638268523,-343.65261696,0.00012996,2]
[326948204,1715638268532,-530.96074052,0.00012996,2]
[326948205,1715638268542,-255.25,0.00012996,2]
[326948206,1715638268551,-190.62,0.00012996,2]
[326948207,1715638268561,-500.0,0.00012996,2]
[326948208,1715638268571,-522.68434321,0.00012996,2]
[326948209,1715638268581,-473.13459728,0.00012996,2]
[326948210,1715638268591,-480.0,0.00012996,2]
[326948211,1715638268601,-524.58643953,0.00012996,2]
[326948212,1715638268611,-500.0,0.00012996,2]
[326948213,1715638268620,-500.0,0.00012996,2]
[326948214,1715638268630,-510.48041265,0.00012996,2]
[326948215,1715638268640,-522.73054144,0.00012996,2]
[326948216,1715638268650,-500.0,0.00012996,2]
[326948217,1715638268659,-500.0,0.00012996,2]
[326948218,1715638268668,-517.71732259,0.00012996,2]
[326948219,1715638268678,-500.0,0.00012996,2]
[326948220,1715638268687,-500.0,0.00012996,2]
[326948221,1715638268696,-480.28211353,0.00012996,2]
[326948222,1715638268706,-500.0,0.00012996,2]
[326948223,1715638268715,-537.99112747,0.00012996,2]
[326948224,1715638268725,-297.73538413,0.00012996,2]
[326948225,1715638268734,-500.0,0.00012996,2]
[326948226,1715638268744,-500.0,0.00012996,2]
[326948227,1715638268753,-259.33,0.00012996,2]
[326948228,1715638268763,-500.0,0.00012996,2]
[326948229,1715638268772,-500.0,0.00012996,2]
[326948230,1715638268782,-160.32,0.00012996,2]
[326948231,1715638268791,-500.0,0.00012996,2]
[326948232,1715638268801,-500.0,0.00012996,2]
[326948233,1715638268810,-500.0,0.00012996,2]
[326948234,1715638268820,-346.23,0.00012996,2]
[326948235,1715638268829,-241.7,0.00012996,2]
[326948236,1715638268838,-1234.6847633,0.00012996,2]
[326948237,1715638268847,-500.0,0.00012996,2]
[326948238,1715638268856,-500.0,0.00012996,2]
[326948239,1715638268865,-500.0,0.00012996,2]
[326948240,1715638268875,-500.0,0.00012996,2]
[326948241,1715638268884,-500.0,0.00012996,2]
[326948242,1715638268893,-500.0,0.00012996,2]
[326948243,1715638268902,-18250.22903303,0.00012996,2]
[326948244,1715638268916,-784.50318454,0.00012996,2]
[326948245,1715638268927,-137.08020473,0.00012996,2]
[326948246,1715638268936,-500.0,0.00012996,2]
[326948247,1715638268948,-161.5,0.00012996,2]
[326948248,1715638268958,-530.87,0.00012996,2]
[326948249,1715638268967,-500.0,0.00012996,2]
[326948250,1715638268977,-178.52979527,0.00012996,2]
[326948251,1715638268989,-181.50020473,0.00012996,2]
[326948252,1715638268999,-328.95,0.00012996,2]
[326948253,1715638269008,-500.0,0.00012996,2]
[326948254,1715638269018,-500.0,0.00012996,2]
[326948255,1715638269027,-124.67971579,0.00012996,2]
[326948256,1715638269040,-375.32028421,0.00012996,2]
[326948257,1715638269049,-500.0,0.00012996,2]
[326948258,1715638269059,-500.0,0.00012996,2]
[326948259,1715638269068,-500.0,0.00012996,2]
[326948260,1715638269078,-500.0,0.00012996,2]
[326948261,1715638269088,-500.0,0.00012996,2]
[326948262,1715638269097,-500.0,0.00012996,2]
[326948263,1715638269106,-295.26682441,0.00012996,2]
[326948264,1715638269115,-500.0,0.00012996,2]
[326948265,1715638269125,-193.91248997,0.00012996,2]
[326948266,1715638269134,-500.0,0.00012996,2]
[326948267,1715638269143,-500.0,0.00012996,2]
[326948268,1715638269155,-500.0,0.00012996,2]
[326948269,1715638269165,-435.38,0.00012996,2]
[326948270,1715638269174,-500.0,0.00012996,2]
[326948271,1715638269183,-500.0,0.00012996,2]
[326948272,1715638269193,-196.672972,0.00012996,2]
[326948273,1715638269205,-303.327028,0.00012996,2]
[326948274,1715638269215,-500.0,0.00012996,2]
[326948275,1715638269225,-500.0,0.00012996,2]
[326948276,1715638269235,-500.0,0.00012996,2]
[326948277,1715638269244,-500.0,0.00012996,2]
[326948278,1715638269254,-277.78,0.00012996,2]
[326948279,1715638269264,-771.63,0.00012996,2]
[326948280,1715638269274,-500.0,0.00012996,2]
[326948281,1715638269284,-500.0,0.00012996,2]
[326948282,1715638269294,-500.0,0.00012996,2]
[326948283,1715638269304,-349.43,0.00012996,2]
[326948284,1715638269314,-1758.32,0.00012996,2]
[326948285,1715638269324,-500.0,0.00012996,2]
[326948286,1715638269334,-578.0219427,0.00012996,2]
[326948287,1715638269345,-500.0,0.00012996,2]
[326948288,1715638269355,-500.0,0.00012996,2]
[326948289,1715638269365,-500.0,0.00012996,2]
[326948290,1715638269374,-517.88085068,0.00012996,2]
[326948291,1715638269384,-500.0,0.00012996,2]
[326948292,1715638269394,-500.0,0.00012996,2]
[326948293,1715638269404,-500.0,0.00012996,2]
[326948294,1715638269414,-500.0,0.00012996,2]
[326948295,1715638269424,-500.0,0.00012996,2]
[326948296,1715638269434,-332.59,0.00012996,2]